bitfinex-derivatives/quotes_BTCF0:USTF0_20251216
["timestamp","ask_amount","ask_price","bid_price","bid_amount"]
[1765894785462,0.21500223,86916.0,86915.0,0.1991976]
[1765894785662,0.21600223,86916.0,86915.0,0.1991976]
[1765894786370,0.12089223,86916.0,86915.0,0.1991976]
[1765894787263,0.21600223,86916.0,86915.0,0.0115076]
[1765894787659,0.21600223,86916.0,86915.0,0.1991976]
[1765894788369,0.12089223,86916.0,86915.0,0.1991976]
[1765894788570,0.21690223,86916.0,86915.0,0.1991976]
[1765894788872,0.21590223,86916.0,86915.0,0.1991976]
[1765894789072,0.02662223,86916.0,86915.0,0.1991976]
[1765894789460,0.00017256,86924.0,86923.0,0.2014669]
[1765894791261,0.00017256,86924.0,86923.0,0.2024669]
[1765894791567,0.00017256,86924.0,86923.0,0.2044669]
[1765894791768,0.00017256,86924.0,86923.0,0.2034669]
[1765894791969,0.00017256,86924.0,86923.0,0.2054669]
[1765894792465,0.00017256,86924.0,86923.0,0.2044669]
[1765894793168,2.56e-06,86924.0,86923.0,0.2044669]
[1765894793679,2.56e-06,86924.0,86923.0,0.2024669]
[1765894793863,2.56e-06,86924.0,86923.0,0.2054669]
[1765894794373,2.56e-06,86924.0,86923.0,0.2034669]
[1765894794873,2.56e-06,86924.0,86923.0,0.2044669]
[1765894795066,2.56e-06,86924.0,86923.0,0.2034669]
[1765894795675,2.56e-06,86924.0,86923.0,0.2044669]
[1765894796772,2.56e-06,86924.0,86923.0,0.2054669]
[1765894797180,2.56e-06,86924.0,86923.0,0.2044669]
[1765894797576,2.56e-06,86924.0,86923.0,0.2034669]
[1765894797777,2.56e-06,86924.0,86923.0,0.2054669]
[1765894798481,2.56e-06,86924.0,86923.0,0.2034669]
[1765894798682,2.56e-06,86924.0,86923.0,0.2054669]
[1765894799772,2.56e-06,86924.0,86923.0,0.2034669]
[1765894799973,2.56e-06,86924.0,86923.0,0.2054669]
[1765894800577,2.56e-06,86924.0,86923.0,0.2064669]
[1765894801186,2.56e-06,86924.0,86923.0,0.2044669]
[1765894801373,2.56e-06,86924.0,86923.0,0.2034669]
[1765894801572,2.56e-06,86924.0,86923.0,0.2044669]
[1765894801768,2.56e-06,86924.0,86923.0,0.2024669]
[1765894801979,2.56e-06,86924.0,86923.0,0.2034669]
[1765894804486,0.18712256,86924.0,86923.0,0.2034669]
[1765894804783,0.21269281,86924.0,86923.0,0.19196]
[1765894805086,0.18712256,86924.0,86923.0,0.19196]
[1765894806178,2.56e-06,86924.0,86923.0,0.002]
[1765894806381,0.19645256,86924.0,86923.0,0.19854]
[1765894806686,0.19645256,86924.0,86923.0,0.19754]
[1765894807278,0.22185756,86924.0,86923.0,0.19754]
[1765894807587,0.22185756,86924.0,86923.0,0.19854]
[1765894808185,0.02540756,86924.0,86923.0,0.19754]
[1765894808389,2.56e-06,86924.0,86923.0,0.001]
[1765894809089,0.06744,86949.0,86948.0,0.19754]
[1765894809090,0.26389,86949.0,86948.0,0.19754]
[1765894809386,0.02537078,86949.0,86948.0,0.2090436]
[1765894810289,0.00017256,86957.0,86956.0,0.2090426]
[1765894811780,0.00017256,86957.0,86956.0,0.2110426]
[1765894812686,0.00017256,86957.0,86956.0,0.2130426]
[1765894813089,0.00017256,86957.0,86956.0,0.2110426]
[1765894813291,0.00017256,86957.0,86956.0,0.2130426]
[1765894813786,0.00017256,86957.0,86956.0,0.2110426]
[1765894814089,0.00017256,86957.0,86956.0,0.20054]
[1765894814090,0.19662256,86957.0,86956.0,0.20054]
[1765894814885,0.19662256,86957.0,86956.0,0.19954]
[1765894815082,0.00017256,86957.0,86956.0,0.19954]
[1765894815593,0.19662256,86957.0,86956.0,0.19954]
[1765894816277,0.19662256,86957.0,86956.0,0.19854]
[1765894816677,0.19662256,86957.0,86956.0,0.19754]
[1765894817083,0.00017256,86957.0,86956.0,0.19754]
[1765894817686,0.19662256,86957.0,86956.0,0.19754]
[1765894817891,0.00017256,86957.0,86956.0,0.19754]
[1765894818279,0.12692309,86957.0,86956.0,0.19754]
[1765894818686,0.02545309,86957.0,86956.0,0.19754]
[1765894818895,0.00017256,86957.0,86956.0,0.19754]
[1765894819083,0.0011,86960.0,86959.0,0.19754]
[1765894819492,0.0114973,86996.0,86985.0,0.05528]
[1765894819684,0.19645,86998.0,86997.0,0.19754]
[1765894819887,0.19645,86998.0,86994.0,0.05528]
[1765894819888,0.19645,86995.0,86994.0,0.05528]
[1765894820084,0.19645,86990.0,86989.0,0.2090382]
[1765894820392,0.00017246,86998.0,86997.0,0.19754]
[1765894821185,0.02544323,86998.0,86997.0,0.19754]
[1765894821784,0.00017246,86998.0,86997.0,0.19754]
[1765894822595,0.2079473,86996.0,86986.0,1.5]
[1765894822797,0.19645,86996.0,86995.0,0.19754]
[1765894823290,0.0114973,86996.0,86990.0,0.011498]
[1765894823477,0.19645,86991.0,86990.0,0.209038]
[1765894825392,0.10247,86996.0,86995.0,0.2090374]
[1765894825693,0.22264667,86996.0,86995.0,0.2090374]
[1765894825893,0.22164536,86996.0,86995.0,0.2090374]
[1765894826093,0.12666536,86996.0,86995.0,0.2090374]
[1765894826289,0.22164536,86996.0,86995.0,0.2090374]
[1765894826696,0.22264536,86996.0,86995.0,0.2090374]
[1765894827201,0.001,86996.0,86995.0,0.2090374]
[1765894827595,0.00017246,86998.0,86997.0,0.19754]
[1765894827993,0.02535533,86998.0,86997.0,0.19754]
[1765894828194,0.00017246,86998.0,86997.0,0.19754]
[1765894829296,0.19662246,86998.0,86997.0,0.19754]
[1765894829499,0.00017246,86998.0,86997.0,0.19754]
[1765894829891,0.10164246,86998.0,86997.0,0.19754]
[1765894830494,0.10264246,86998.0,86997.0,0.19754]
[1765894831089,0.19645,86987.0,86986.0,1.5]
[1765894831386,0.39483906,86996.0,86995.0,0.1085574]
[1765894831603,0.19645,86996.0,86995.0,0.1085574]
[1765894831899,0.10147,86996.0,86995.0,0.2090374]
[1765894832105,0.10264246,86998.0,86997.0,0.19754]
[1765894832306,0.12780157,86998.0,86997.0,0.19754]
[1765894832798,0.22278157,86998.0,86997.0,0.19754]
[1765894833098,0.22178157,86998.0,86997.0,0.19754]
[1765894833800,0.22278618,86998.0,86997.0,0.19754]
[1765894833992,0.19762246,86998.0,86997.0,0.19754]
[1765894835195,0.22279432,86998.0,86997.0,0.19754]
[1765894835396,0.19762246,86998.0,86997.0,0.19754]
[1765894835598,0.10264246,86998.0,86997.0,0.19754]
[1765894836398,0.19342246,86998.0,86997.0,0.19754]
[1765894837101,0.21707117,86998.0,86997.0,0.2090371]
[1765894837307,0.21807117,86998.0,86997.0,0.2090371]
[1765894838692,0.21707117,86998.0,86997.0,0.2090371]
[1765894838899,0.21807117,86998.0,86997.0,0.2090371]
[1765894841308,0.18635,86986.0,86985.0,0.24992]
[1765894841700,0.18635,86986.0,86985.0,0.2614187]
[1765894842404,0.18635,86995.0,86994.0,0.2061375]
[1765894842607,0.21104046,86995.0,86994.0,0.2061375]
[1765894842798,0.02469046,86995.0,86994.0,0.2061375]
[1765894843600,0.00117246,86998.0,86997.0,0.2061371]
[1765894843913,0.00017246,86998.0,86997.0,0.2061371]
[1765894845313,0.00117246,86998.0,86997.0,0.2061371]
[1765894847512,2.46e-06,86998.0,86997.0,0.2061371]
[1765894848219,2.46e-06,86998.0,86997.0,0.0114971]
[1765894848412,0.02475978,86998.0,86997.0,0.0114971]
[1765894848716,2.46e-06,86998.0,86997.0,0.0114971]
[1765894849105,0.02478914,86998.0,86997.0,0.2095471]
[1765894849710,0.00017225,87006.0,86997.0,0.2095471]
[1765894849711,0.00017225,87006.0,87005.0,0.1991161]
[1765894851108,0.00117225,87006.0,87005.0,0.1991161]
[1765894852413,0.00317225,87006.0,87005.0,0.1991161]
[1765894852814,0.09947225,87006.0,87005.0,0.1991161]
[1765894853417,0.00317225,87006.0,87005.0,0.1991161]
[1765894856130,0.00229839,87018.0,87017.0,0.2559545]
[1765894856313,0.0963,87037.0,87036.0,0.18762]
[1765894856513,0.19443,87037.0,87036.0,0.18762]
[1765894857821,0.19543,87037.0,87036.0,0.18762]
[1765894858214,0.001,87037.0,87036.0,0.18762]
[1765894858622,0.09859733,87058.0,87057.0,0.18762]
[1765894858921,0.00229733,87058.0,87057.0,0.18762]
[1765894859918,0.00729733,87058.0,87057.0,0.18762]
[1765894860424,0.00229733,87058.0,87057.0,0.18762]
[1765894860614,0.00629733,87058.0,87057.0,0.18762]
[1765894861520,0.00629733,87058.0,87057.0,0.20558015]
[1765894862020,0.00229733,87058.0,87057.0,0.20558015]
[1765894862227,0.00229733,87058.0,87057.0,0.20658015]
[1765894862529,0.19443,87074.0,87073.0,0.199107]
[1765894862720,0.21904086,87074.0,87073.0,0.199107]
[1765894862915,0.21904086,87074.0,87073.0,0.18762]
[1765894863113,0.21904086,87074.0,87065.0,0.00017234]
[1765894863114,0.19443,87066.0,87065.0,0.18779234]
[1765894863313,0.19443,87066.0,87065.0,0.00017234]
[1765894863522,0.19443,87066.0,87065.0,0.01813205]
[1765894863723,0.26196698,87066.0,87065.0,0.01813205]
[1765894863924,0.21901698,87066.0,87065.0,0.01813205]
[1765894864228,0.26192698,87066.0,87065.0,0.00017234]
[1765894864524,0.18776,87041.0,87037.0,0.0114918]
[1765894864738,0.18776,87034.0,87033.0,0.2012622]
[1765894864923,0.18776,87039.0,87038.0,0.18977]
[1765894865123,0.18776,87039.0,87038.0,0.01796429]
[1765894865324,0.18776,87031.0,87030.0,0.24661]
[1765894865526,0.18776,87031.0,87030.0,0.01796509]
[1765894865915,0.18776,87031.0,87030.0,0.26631509]
[1765894866115,0.18776,87031.0,87030.0,0.01796509]
[1765894866323,0.18776,87023.0,87022.0,0.00017234]
[1765894866629,0.18776,87031.0,87030.0,0.24835]
[1765894866827,0.21222944,87031.0,87030.0,0.24835]
[1765894867125,0.18776,87031.0,87030.0,0.24935]
[1765894867427,0.29070292,87040.0,87030.0,0.24935]
[1765894867428,0.18793195,87039.0,87038.0,0.2012617]
[1765894867627,0.00017195,87039.0,87038.0,0.2012617]
[1765894868219,0.00017195,87039.0,87030.0,0.05958]
[1765894868433,0.00017195,87039.0,87030.0,0.001]
[1765894868434,0.18776,87031.0,87030.0,0.001]
[1765894868736,0.1992537,87023.0,87022.0,0.00017234]
[1765894869029,0.83432,87023.0,87022.0,0.00017234]
[1765894870525,0.18876,87023.0,87022.0,0.18994234]
[1765894870725,0.001,87023.0,87022.0,0.18994234]
[1765894872536,0.001,87023.0,87022.0,0.19294234]
[1765894873126,0.3686,87038.0,87022.0,0.19194234]
[1765894873337,0.00017195,87039.0,87038.0,0.18977]
[1765894875029,0.09021195,87039.0,87038.0,0.18977]
[1765894875333,0.09021195,87039.0,87038.0,0.19077]
[1765894875733,0.09021195,87039.0,87038.0,0.19177]
[1765894875936,0.09021195,87039.0,87038.0,0.19277]
[1765894876333,0.18793195,87039.0,87038.0,0.19077]
[1765894876534,0.18793195,87039.0,87038.0,0.19177]
[1765894876830,0.09021195,87039.0,87038.0,0.19077]
[1765894877133,0.18793195,87039.0,87038.0,0.19077]
[1765894877334,0.00017195,87039.0,87038.0,0.19077]
[1765894878027,0.00017195,87039.0,87038.0,0.18977]
[1765894878430,0.18793195,87039.0,87038.0,0.0931]
[1765894878726,0.00017195,87039.0,87038.0,0.19077]
[1765894879035,0.00017195,87039.0,87038.0,0.18977]
[1765894879222,0.00017195,87039.0,87038.0,0.19177]
[1765894879628,0.09021195,87039.0,87038.0,0.18977]
[1765894879832,0.09021195,87039.0,87038.0,0.19077]
[1765894880339,0.00017195,87039.0,87038.0,0.19077]
[1765894881137,0.00017195,87039.0,87038.0,0.18977]
[1765894881337,0.00017195,87039.0,87038.0,0.19077]
[1765894882733,0.00017195,87039.0,87038.0,0.18977]
[1765894882940,0.00017195,87039.0,87038.0,0.19077]
[1765894883836,0.09021195,87039.0,87038.0,0.19077]
[1765894884138,0.18793195,87039.0,87038.0,0.19077]
[1765894884535,0.00017195,87039.0,87038.0,0.19077]
[1765894885039,0.00017195,87039.0,87038.0,0.19277]
[1765894885541,0.00017195,87039.0,87038.0,0.19177]
[1765894885737,0.09021195,87039.0,87038.0,0.19077]
[1765894886143,0.00017195,87039.0,87038.0,0.19077]
[1765894886538,0.21247833,87039.0,87038.0,0.19077]
[1765894886841,0.02471833,87039.0,87038.0,0.19077]
[1765894887044,0.00017195,87039.0,87038.0,0.19077]
[1765894888334,0.00017195,87039.0,87038.0,0.19177]
[1765894888532,0.25780085,87039.0,87038.0,0.00109186]
[1765894888738,0.18776,87023.0,87021.0,0.0114939]
[1765894889041,0.2123189,87023.0,87022.0,0.18994234]
[1765894890335,0.0245589,87023.0,87022.0,0.18994234]
[1765894890540,0.72404,87027.0,87022.0,0.18994234]
[1765894890541,0.21232939,87026.0,87025.0,0.18977]
[1765894891039,0.02456939,87026.0,87025.0,0.18977]
[1765894891244,0.00017195,87039.0,87038.0,0.2012617]
[1765894891441,0.91197195,87039.0,87038.0,0.18977]
[1765894891646,0.18776,87036.0,87035.0,0.011492]
[1765894891837,0.21232167,87036.0,87035.0,0.011492]
[1765894892638,0.21232167,87036.0,87035.0,0.201262]
[1765894893943,0.02458699,87036.0,87032.0,0.0114924]
[1765894894138,0.18593,87033.0,87032.0,0.0114924]
[1765894894339,0.22200949,87033.0,87032.0,0.0114924]
[1765894894536,0.1974228,87030.0,87029.0,0.0114929]
[1765894894738,0.22200979,87030.0,87029.0,0.0114929]
[1765894894939,0.18593,87023.0,87022.0,0.00017234]
[1765894895139,0.1974242,87019.0,86996.0,0.0114972]
[1765894895339,0.1974264,87003.0,87002.0,0.0114963]
[1765894895534,0.1974273,86996.0,86995.0,0.1083571]
[1765894895736,0.91367699,86996.0,86995.0,0.1083574]
[1765894896036,0.91367699,86996.0,86990.0,0.1645081]
[1765894896037,0.18593,86991.0,86990.0,0.1645081]
[1765894896250,0.21061916,86991.0,86990.0,0.1645081]
[1765894897240,0.21061916,86991.0,86990.0,0.2634781]
[1765894897441,0.18603217,86991.0,86990.0,0.2634781]
[1765894897841,0.00010217,86991.0,86990.0,0.2634781]
[1765894898150,0.08994217,86991.0,86990.0,0.2634781]
[1765894898543,0.18603217,86991.0,86990.0,0.2634781]
[1765894899145,0.18703217,86991.0,86990.0,0.2634781]
[1765894900545,0.18603217,86991.0,86990.0,0.2634781]
[1765894903950,0.19753007,86991.0,86990.0,0.09686]
[1765894904158,0.18593,86986.0,86985.0,0.25198]
[1765894904352,0.18593,86986.0,86985.0,0.2634787]
[1765894904759,0.08984,86986.0,86985.0,0.2634787]
[1765894905053,0.08994217,86991.0,86990.0,0.19583]
[1765894905259,0.81414217,86991.0,86990.0,0.19583]
[1765894905759,0.91023217,86991.0,86990.0,0.19583]
[1765894906961,0.18593,86986.0,86985.0,0.25198]
[1765894907156,0.18593,86986.0,86985.0,0.2634787]
[1765894907362,0.18593,86986.0,86985.0,0.25198]
[1765894908765,0.08984,86986.0,86985.0,0.25198]
[1765894908964,0.00010217,86991.0,86990.0,0.2073281]
[1765894910263,0.00010217,86991.0,86990.0,0.2083281]
[1765894910654,0.00010217,86991.0,86990.0,0.2073281]
[1765894910855,0.00010217,86991.0,86990.0,0.2083281]
[1765894911255,0.00010217,86991.0,86990.0,0.2093281]
[1765894913566,0.00010217,86991.0,86990.0,0.2083281]
[1765894913764,0.00010217,86991.0,86990.0,0.2093281]
[1765894915257,0.00010217,86991.0,86990.0,0.2083281]
[1765894915462,0.00010217,86991.0,86990.0,0.2093281]
[1765894916168,0.00010217,86991.0,86990.0,0.2083281]
[1765894916367,0.00010217,86991.0,86990.0,0.2093281]
[1765894916770,0.00010217,86991.0,86990.0,0.2083281]
[1765894917072,0.00010217,86991.0,86990.0,0.2093281]
[1765894917271,0.00010217,86991.0,86990.0,0.2083281]
[1765894917567,0.00017234,86999.0,86998.0,0.19583]
[1765894917765,0.00017234,86999.0,86998.0,0.207327]
[1765894918555,0.09001234,86999.0,86998.0,0.207327]
[1765894919267,0.00017234,86999.0,86998.0,0.207327]
[1765894919460,0.09001234,86999.0,86998.0,0.208327]
[1765894919659,0.18610234,86999.0,86998.0,0.208327]
[1765894920469,0.22212434,86999.0,86998.0,0.208327]
[1765894920878,0.22212434,86999.0,86998.0,0.001]
[1765894921075,0.22212434,86999.0,86985.0,0.05615]
[1765894921076,0.1974275,86994.0,86993.0,0.0114976]
[1765894921372,0.21046477,86994.0,86993.0,0.0114976]
[1765894921674,0.21046477,86994.0,86993.0,0.2073276]
[1765894922166,0.21146477,86994.0,86993.0,0.2073276]
[1765894923172,0.21150222,86994.0,86993.0,0.2073276]
[1765894923769,0.192759,86983.0,86966.0,0.06197791]
[1765894923972,0.21733122,86983.0,86961.0,0.0115018]
[1765894924669,0.21733122,86983.0,86979.0,0.0114995]
[1765894924869,0.20583222,86983.0,86982.0,0.20117144]
[1765894925071,0.02457222,86983.0,86982.0,0.20317144]
[1765894925274,0.18126,86991.0,86990.0,0.2009981]
[1765894925569,0.20586696,86991.0,86990.0,0.1895]
[1765894925766,0.18126,86983.0,86982.0,0.00017234]
[1765894925962,0.20686696,86983.0,86982.0,0.00017234]
[1765894927275,0.26870264,86983.0,86982.0,0.00017234]
[1765894927470,0.26870264,86983.0,86960.0,0.011502]
[1765894927471,0.1927619,86961.0,86960.0,0.011502]
[1765894927666,0.20586696,86961.0,86960.0,0.201002]
[1765894927876,0.20586696,86961.0,86960.0,0.109312]
[1765894928265,0.20586696,86961.0,86960.0,0.201002]
[1765894928963,0.20686696,86961.0,86960.0,0.201002]
[1765894929170,0.20786696,86961.0,86960.0,0.201002]
[1765894930374,0.20686696,86961.0,86960.0,0.201002]
[1765894930569,0.20786696,86961.0,86960.0,0.201002]
[1765894931074,0.02660696,86961.0,86960.0,0.201002]
[1765894932079,0.02560696,86961.0,86960.0,0.201002]
[1765894933282,0.18226,86961.0,86960.0,0.201002]
[1765894933484,0.18126,86959.0,86958.0,0.0545]
[1765894933674,0.18126,86955.0,86954.0,0.2010027]
[1765894934071,0.8783441,86964.0,86963.0,0.2010016]
[1765894934271,0.70435587,86964.0,86963.0,0.1895]
[1765894935278,0.18126,86959.0,86958.0,0.244]
[1765894935680,0.1927622,86959.0,86958.0,0.244]
[1765894935876,0.18126,86959.0,86958.0,0.244]
[1765894936178,0.68082,86964.0,86963.0,0.2010016]
[1765894936383,0.20679608,86964.0,86963.0,0.2010016]
[1765894936585,0.93203608,86964.0,86963.0,0.2010016]
[1765894936973,0.93003608,86964.0,86963.0,0.2010016]
[1765894937678,0.001,86964.0,86963.0,0.2010016]
[1765894937872,1.43812,86993.0,86989.0,0.2009982]
[1765894937873,0.41295,86990.0,86989.0,0.2009982]
[1765894938075,0.20579545,86990.0,86989.0,0.2009982]
[1765894938283,0.51315545,86990.0,86989.0,0.2009982]
[1765894938886,0.00017244,86998.0,86997.0,0.2009971]
[1765894940089,0.00229839,87018.0,87017.0,0.2009945]
[1765894941274,0.10790639,87050.0,87027.0,0.0114931]
[1765894941275,0.1985241,87050.0,87027.0,0.0114931]
[1765894941481,0.1985241,87040.0,87032.0,0.0545]
[1765894941791,0.18126,87033.0,87032.0,0.244]
[1765894942182,0.18126,87033.0,87032.0,0.2619655]
[1765894942490,0.18126,87033.0,87032.0,0.244]
[1765894942782,0.18126,87033.0,87032.0,0.09781]
[1765894943578,0.18126,87033.0,87032.0,0.244]
[1765894944084,0.09155,87033.0,87032.0,0.244]
[1765894944279,0.3797841,87042.0,87041.0,0.1895]
[1765894944478,0.43571606,87042.0,87041.0,0.1895]
[1765894945090,0.09155,87034.0,87033.0,0.2009924]
[1765894945387,0.18126,87034.0,87033.0,0.2009924]
[1765894945579,0.18126,87034.0,87032.0,0.0545]
[1765894945580,0.3797841,87043.0,87042.0,0.1895]
[1765894945782,0.64146,87043.0,87042.0,0.1895]
[1765894946182,0.0114915,87040.0,87033.0,0.0114923]
[1765894946390,0.27097,87041.0,87040.0,0.244]
[1765894946684,0.08971,87041.0,87040.0,0.244]
[1765894946884,0.08971,87041.0,87040.0,0.25566529]
[1765894947303,0.08971,87041.0,87040.0,0.244]
[1765894947883,0.00229733,87058.0,87057.0,0.2009892]
[1765894948093,0.09384733,87058.0,87057.0,0.1895]
[1765894948290,0.18355733,87058.0,87057.0,0.1895]
[1765894948788,0.00229733,87058.0,87057.0,0.1895]
[1765894949189,0.00229733,87058.0,87057.0,0.1905]
[1765894949586,0.00229733,87058.0,87057.0,0.1895]
[1765894950293,0.00229733,87058.0,87057.0,0.1905]
[1765894950987,0.1985241,87070.0,87069.0,0.1895]
[1765894951289,0.50124,87077.0,87057.0,0.001]
[1765894951290,0.18126,87062.0,87061.0,0.00017234]
[1765894953895,0.1847,87055.0,87054.0,0.0976]
[1765894954194,0.65336,87064.0,87051.0,0.19365]
[1765894954195,0.19619,87052.0,87051.0,0.19365]
[1765894954392,0.1847,87052.0,87051.0,0.19365]
[1765894955495,0.002,87055.0,87054.0,0.25086]
[1765894955790,0.68868,87057.0,87056.0,0.19365]
[1765894955985,0.7821,87057.0,87056.0,0.19365]
[1765894956380,0.09342,87057.0,87056.0,0.19365]
[1765894956586,0.09342,87057.0,87054.0,0.05721]
[1765894956587,0.1847,87058.0,87057.0,0.0114892]
[1765894956793,0.1847,87054.0,87053.0,0.2051396]
[1765894957192,0.00017199,87060.0,87059.0,0.2051389]
[1765894957904,0.1847,87054.0,87053.0,0.0114897]
[1765894958096,0.00017199,87060.0,87059.0,0.2051389]
[1765894959802,0.00017199,87060.0,87059.0,0.22309844]
[1765894960295,0.02837708,87086.0,87059.0,0.22309844]
[1765894960296,0.1961843,87095.0,87094.0,0.19365]
[1765894960495,0.1961843,87095.0,87094.0,0.11555954]
[1765894960705,0.1961843,87095.0,87094.0,0.01795954]
[1765894960999,0.1847,87095.0,87094.0,0.01795954]
[1765894961302,0.0114822,87111.0,87110.0,0.19365]
[1765894961487,0.1961822,87111.0,87110.0,0.01795954]
[1765894961688,0.1847,87104.0,87103.0,0.205133]
[1765894962094,0.19803442,87120.0,87103.0,0.01795169]
[1765894962295,0.19803442,87120.0,87111.0,0.19365]
[1765894962296,0.104902,87112.0,87111.0,0.19365]
[1765894962588,0.1847,87110.0,87102.0,0.00017223]
[1765894962785,0.5624,87120.0,87102.0,0.00017223]
[1765894962786,0.09342,87104.0,87103.0,0.21160112]
[1765894962994,0.29145442,87112.0,87111.0,0.19365]
[1765894963184,0.09342,87117.0,87109.0,0.05721]
[1765894963394,0.09342,87110.0,87109.0,0.25086]
[1765894963595,0.1847,87110.0,87109.0,0.26881102]
[1765894963897,0.1847,87103.0,87102.0,0.00017223]
[1765894964199,0.1847,87109.0,87108.0,0.0976]
[1765894964399,0.1961823,87109.0,87108.0,0.21160171]
[1765894964899,0.004,87112.0,87102.0,0.00017223]
[1765894964900,0.09342,87103.0,87102.0,0.19382223]
[1765894965093,0.1877,87103.0,87102.0,0.01812415]
[1765894965800,0.1961831,87103.0,87102.0,0.01812415]
[1765894966107,0.1961831,87103.0,87102.0,0.01812592]
[1765894966599,0.1847,87103.0,87102.0,0.21177592]
[1765894967005,0.09342,87108.0,87107.0,0.19365]
[1765894967196,0.004,87109.0,87108.0,0.2051325]
[1765894967390,0.1961815,87116.0,87115.0,0.0976]
[1765894967701,0.22080212,87116.0,87115.0,0.01795369]
[1765894969290,0.21432062,87116.0,87115.0,0.21160369]
[1765894969692,0.21432062,87116.0,87115.0,0.01795369]
[1765894969901,0.1961831,87103.0,87102.0,0.00017223]
[1765894970113,0.1961831,87103.0,87102.0,0.01812511]
[1765894970304,0.22084382,87103.0,87102.0,0.01812511]
[1765894971103,0.22284382,87103.0,87102.0,0.01812511]
[1765894972604,0.02666072,87103.0,87102.0,0.21382511]
[1765894973607,0.0114789,87136.0,87102.0,0.21382511]
[1765894973608,0.02848105,87128.0,87105.0,0.0344487]
[1765894973799,0.39068442,87120.0,87119.0,0.09322]
[1765894974002,0.21731887,87120.0,87119.0,0.12265388]
[1765894974195,0.02466887,87120.0,87119.0,0.20927288]
[1765894974395,0.0114807,87122.0,87121.0,0.19132]
[1765894974606,0.19265,87125.0,87124.0,0.19132]
[1765894974911,0.21732163,87125.0,87124.0,0.20927288]
[1765894975208,0.02467163,87125.0,87124.0,0.20927288]
[1765894975394,0.21732163,87125.0,87124.0,0.20927288]
[1765894975599,0.02467163,87125.0,87124.0,0.20927288]
[1765894976706,0.02467163,87125.0,87124.0,0.19132]
[1765894976907,0.22232163,87125.0,87124.0,0.19132]
[1765894977103,0.02967163,87125.0,87124.0,0.19132]
[1765894978105,0.12548163,87125.0,87124.0,0.19132]
[1765894978604,0.02867163,87125.0,87124.0,0.19132]
[1765894978809,0.22132163,87125.0,87124.0,0.20926722]
[1765894978999,0.22132163,87125.0,87124.0,0.20926733]
[1765894979198,0.22132163,87125.0,87124.0,0.01794733]
[1765894979810,0.19265,87120.0,87119.0,0.104701]
[1765894980001,0.19265,87120.0,87119.0,0.202801]
[1765894980195,0.19265,87120.0,87119.0,0.19132]
[1765894980698,0.19265,87120.0,87076.0,0.05436]
[1765894980699,0.18954,87103.0,87102.0,0.18172223]
[1765894980898,0.18954,87103.0,87076.0,0.05436]
[1765894980899,0.18954,87103.0,87101.0,0.011605]
[1765894981110,0.18954,87078.0,87077.0,0.1816593]
[1765894981311,0.02876192,87103.0,87096.0,0.011484]
[1765894981510,0.09514,87100.0,87099.0,0.18155]
[1765894981811,0.2142139,87100.0,87099.0,0.18155]
[1765894982014,0.2142139,87100.0,87098.0,0.05476]
[1765894982210,0.18954,87092.0,87091.0,0.00017223]
[1765894982710,0.61421873,87092.0,87091.0,0.00017223]
[1765894982911,0.21421873,87092.0,87091.0,0.00017223]
[1765894983113,0.58693873,87092.0,87091.0,0.00017223]
[1765894983909,0.19191,87078.0,87077.0,0.0001093]
[1765894984107,0.09,87084.0,87083.0,0.0114858]
[1765894984311,0.02470218,87084.0,87083.0,0.2043958]
[1765894984510,0.17612,87090.0,87089.0,0.204395]
[1765894984825,0.02470152,87090.0,87089.0,0.204395]
[1765894985113,0.11470152,87090.0,87089.0,0.204395]
[1765894985311,0.21105152,87090.0,87089.0,0.204395]
[1765894985506,0.02470152,87090.0,87089.0,0.204395]
[1765894985717,0.72312,87095.0,87094.0,0.19291]
[1765894985899,0.74749046,87095.0,87094.0,0.19291]
[1765894986102,0.15182639,87120.0,87119.0,0.09872]
[1765894986314,0.11437785,87120.0,87119.0,0.19291]
[1765894986817,0.02437785,87120.0,87119.0,0.19291]
[1765894987012,0.06182639,87132.0,87129.0,0.2043897]
[1765894987013,0.19803442,87130.0,87129.0,0.2043897]
[1765894987219,0.19803442,87130.0,87120.0,0.05933]
[1765894987220,0.06182639,87136.0,87135.0,0.19291]
[1765894987509,0.09,87125.0,87124.0,0.1102003]
[1765894987711,0.21072916,87125.0,87124.0,0.09872]
[1765894987910,0.02437916,87125.0,87124.0,0.19291]
[1765894989602,0.21072916,87125.0,87124.0,0.19291]
[1765894989802,0.18635,87121.0,87120.0,0.05933]
[1765894990011,0.18635,87121.0,87114.0,0.1102016]
[1765894990012,0.09,87115.0,87114.0,0.1102016]
[1765894990211,0.18635,87112.0,87111.0,0.00017223]
[1765894990412,0.2107586,87112.0,87111.0,0.00017223]
[1765894990717,0.27258499,87112.0,87111.0,0.00017223]
[1765894991112,0.2107586,87112.0,87111.0,0.00017223]
[1765894991315,0.27258499,87112.0,87111.0,0.00017223]
[1765894991518,0.2107586,87112.0,87111.0,0.00017223]
[1765894991910,0.2117586,87112.0,87111.0,0.00017223]
[1765894992514,0.2117586,87112.0,87111.0,0.19308223]
[1765894992515,0.0254086,87112.0,87111.0,0.19308223]
[1765894992814,0.0264086,87112.0,87111.0,0.19308223]
[1765894993017,0.01497539,87112.0,87111.0,0.19308223]
[1765894993211,0.00017186,87120.0,87119.0,0.204391]
[1765894996312,0.00017186,87120.0,87119.0,0.205391]
[1765894997004,0.18635,87116.0,87115.0,0.0114814]
[1765894998012,0.18652186,87120.0,87119.0,0.011481]
[1765894998410,0.18652186,87120.0,87119.0,0.110201]
[1765894998619,0.18652186,87120.0,87119.0,0.001]
[1765894999118,0.18635,87119.0,87118.0,0.0114811]
[1765894999416,0.18635,87119.0,87118.0,0.1102011]
[1765894999616,0.00017186,87120.0,87119.0,0.19291]
[1765895001515,0.43092,87132.0,87131.0,0.2043894]
[1765895002419,0.61727,87132.0,87131.0,0.0114794]
[1765895002618,0.43092,87132.0,87131.0,0.2043894]
[1765895002811,0.61827,87132.0,87131.0,0.0114794]
[1765895003721,0.61827,87132.0,87123.0,0.0114804]
[1765895003722,0.18635,87131.0,87120.0,0.05933]
[1765895003913,0.18635,87121.0,87111.0,0.00017223]
[1765895004113,0.18635,87121.0,87120.0,0.2637209]
[1765895004114,0.29006618,87121.0,87120.0,0.2637209]
[1765895004319,0.47641618,87130.0,87129.0,0.0114797]
[1765895004520,0.90939,87130.0,87129.0,0.0114797]
[1765895004717,0.18635,87130.0,87129.0,0.0114797]
[1765895004916,0.18635,87130.0,87129.0,0.2043897]
[1765895005222,0.57501711,87130.0,87129.0,0.0114797]